fUST/lending_fUST_20240707
["ID","MTS","AMOUNT","RATE_DAILY","PERIOD"]
[331383808,1720311043339,-153.0,0.0003656,2]
[331383809,1720311043349,-153.0,0.0003656,2]
[331383810,1720311043360,-153.0,0.0003656,2]
[331383811,1720311043370,-206.1814845,0.0003656,2]
[331383812,1720311043380,-153.0,0.0003656,2]
[331383813,1720311043389,-206.1814845,0.0003656,2]
[331383814,1720311043399,-153.0,0.0003656,2]
[331383815,1720311043409,-224.3983211,0.0003656,2]
[331383816,1720311043418,-153.0,0.0003656,2]
[331383817,1720311043427,-206.1814845,0.0003656,2]
[331383818,1720311043437,-153.0,0.0003656,2]
[331383819,1720311043446,-153.0,0.0003656,2]
[331383820,1720311043455,-153.0,0.0003656,2]
[331383821,1720311043465,-153.0,0.0003656,2]
[331383822,1720311043475,-206.1814845,0.0003656,2]
[331383823,1720311043485,-153.0,0.0003656,2]
[331383824,1720311043495,-153.0,0.0003656,2]
[331383825,1720311043505,-153.0,0.0003656,2]
[331383826,1720311043515,-153.0,0.0003656,2]
[331383827,1720311043524,-153.0,0.0003656,2]
[331383828,1720311043534,-153.0,0.0003656,2]
[331383829,1720311043545,-153.0,0.0003656,2]
[331383830,1720311043555,-153.0,0.0003656,2]
[331383831,1720311043564,-153.0,0.0003656,2]
[331383832,1720311043574,-153.0,0.0003656,2]
[331383833,1720311043584,-205.7653589,0.0003656,2]
[331383834,1720311043594,-153.0,0.0003656,2]
[331383835,1720311043603,-153.0,0.0003656,2]
[331383836,1720311043619,-306.0,0.0003656,2]
[331383837,1720311043630,-153.0,0.0003656,2]
[331383838,1720311043639,-153.0,0.0003656,2]
[331383839,1720311043649,-153.0,0.0003656,2]
[331383840,1720311043658,-153.0,0.0003656,2]
[331383841,1720311043668,-153.0,0.0003656,2]
[331383842,1720311043677,-153.0,0.0003656,2]
[331383843,1720311043687,-153.0,0.0003656,2]
[331383844,1720311043696,-153.0,0.0003656,2]
[331383845,1720311043706,-153.243,0.00036678,2]
[331383846,1720311043716,-877.0,0.00036683,2]
[331383847,1720311043726,-883.282,0.00036683,2]
[331383849,1720311043736,-1000.0,0.00036986,10]
[331383851,1720311043745,-155.11332947,0.00037,4]
[331383852,1720311043754,-306.13570028,0.0003701,4]
[331383854,1720311043764,-293.3880832,0.00037053,2]
[331383856,1720311043774,-293.3880832,0.00037053,2]
[331383857,1720311043783,-293.3880832,0.00037053,2]
[331383858,1720311043795,-153.0,0.00037382,2]
[331383859,1720311043804,-153.0,0.00037382,2]
[331383860,1720311043814,-153.0,0.00037382,2]
[331383861,1720311043822,-293.3880832,0.00037382,2]
[331383862,1720311043832,-293.3880832,0.00037382,2]
[331383863,1720311043842,-153.0,0.00037682,2]
[331383864,1720311043851,-153.0,0.00037682,2]
[331383865,1720311043861,-153.0,0.00037682,2]
[331383866,1720311043871,-153.0,0.00037682,2]
[331383868,1720311043880,-153.0,0.00037682,2]
[331383870,1720311043890,-683.0,0.00037818,5]
[331383872,1720311043900,-293.3880832,0.00037875,2]
[331383874,1720311043909,-293.3880832,0.00037875,2]
[331383876,1720311043919,-293.3880832,0.00037875,2]
[331383878,1720311043929,-586.7761664,0.00037875,2]
[331383879,1720311043939,-293.3880832,0.00037875,2]
[331383880,1720311043948,-293.3880832,0.00037875,2]
[331383881,1720311043957,-293.3880832,0.00037875,2]
[331383882,1720311043967,-586.7761664,0.00037875,2]
[331383883,1720311043976,-293.3880832,0.00037875,2]
[331383884,1720311043986,-150.0,0.00037898,2]
[331383885,1720311043995,-153.0,0.0003793,2]
[331383886,1720311044004,-250.0,0.00038,120]
[331383887,1720311044015,-206.1814845,0.00038093,2]
[331383888,1720311044024,-306.0,0.00038093,2]
[331383889,1720311044033,-206.1814845,0.00038093,2]
[331383890,1720311044043,-206.1814845,0.00038093,2]
[331383891,1720311044053,-206.1814845,0.00038093,2]
[331383892,1720311044062,-153.0,0.00038093,2]
[331383893,1720311044071,-306.0,0.00038093,2]
[331383894,1720311044080,-293.3880832,0.00038204,2]
[331383896,1720311044090,-293.3880832,0.00038204,2]
[331383897,1720311044100,-293.3880832,0.00038204,2]
[331383899,1720311044110,-293.3880832,0.00038204,2]
[331383901,1720311044120,-293.3880832,0.00038204,2]
[331383903,1720311044129,-293.3880832,0.00038204,2]
[331383905,1720311044138,-293.3880832,0.00038204,2]
[331383906,1720311044148,-293.3880832,0.00038204,2]
[331383908,1720311044157,-293.3880832,0.00038204,2]
[331383910,1720311044166,-293.3880832,0.00038204,2]
[331383912,1720311044176,-293.3880832,0.00038204,2]
[331383914,1720311044186,-293.3880832,0.00038204,2]
[331383915,1720311044195,-578.621514,0.00038204,2]
[331383917,1720311044204,-1000.0,0.00038356,10]
[331383918,1720311044215,-1000.0,0.00038356,60]
[331383919,1720311044224,-1000.0,0.00038356,60]
[331383920,1720311044234,-1000.0,0.00038356,60]
[331383921,1720311044243,-1000.0,0.00038356,60]
[331383922,1720311044252,-1000.0,0.00038356,60]
[331383923,1720311044262,-1000.0,0.00038356,60]
[331383924,1720311044271,-1000.0,0.00038356,60]
[331383925,1720311044280,-1000.0,0.00038356,60]
[331383926,1720311044292,-1000.0,0.00038356,60]
[331383927,1720311044301,-1000.24855661,0.00038356,60]
[331383928,1720311044312,-306.0,0.00038915,2]
[331383929,1720311044322,-153.0,0.00038915,2]
[331383930,1720311044331,-153.0,0.00038915,2]
[331383931,1720311044342,-153.0,0.00038915,2]
[331383932,1720311044351,-210.0,0.00039,2]
[331383933,1720311044360,-175.0,0.00039273,15]
[331383934,1720311044370,-750.0,0.00039394,2]
[331383935,1720311044380,-175.0,0.00039467,15]
[331383936,1720311044390,-152.0,0.00039467,15]
[331383937,1720311044399,-151.11803291,0.00039624,3]
[331383938,1720311044408,-336.8304846,0.00039646,2]
[331383939,1720311044418,-175.0,0.0003966,15]
[331383940,1720311044427,-152.0,0.0003966,15]
[331383941,1720311044437,-150.0,0.00039678,2]
[331383942,1720311044447,-877.0,0.00039683,2]
[331383943,1720311044456,-878.0,0.00039683,2]
[331383944,1720311044465,-1000.0,0.00039726,10]
[331383945,1720311044475,-306.0,0.00039744,2]
[331383946,1720311044485,-205.180917,0.00039744,2]
[331383947,1720311044495,-206.1814845,0.00039744,2]
[331383948,1720311044506,-206.1814845,0.00039783,2]
[331383949,1720311044517,-683.0,0.00039808,5]
[331383950,1720311044526,-293.3880832,0.00039848,2]
[331383951,1720311044538,-175.0,0.00039854,15]
[331383952,1720311044551,-152.0,0.00039854,15]
[331383953,1720311044561,-150.0,0.000399,41]
[331383954,1720311044574,-170.90251844,0.00039999,4]
[331383955,1720311044584,-519.3784263,0.00039999,31]
[331383956,1720311044594,-297.78081127,0.00039999,31]
[331383957,1720311044605,-500.0,0.00039999,31]
[331383958,1720311044619,-500.0,0.00039999,31]
[331383959,1720311044629,-500.0,0.00039999,31]
[331383960,1720311044640,-500.0,0.00039999,31]
[331383961,1720311044650,-500.0,0.00039999,31]
[331383962,1720311044661,-500.0,0.00039999,31]
[331383963,1720311044673,-464.54484508,0.00039999,31]
[331383964,1720311044683,-500.0,0.00039999,31]
[331383965,1720311044696,-546.32779317,0.00039999,31]
[331383966,1720311044706,-500.0,0.00039999,31]
[331383967,1720311044715,-613.8542196,0.00039999,7]
[331383968,1720311044725,-365.41949915,0.00039999,31]
[331383969,1720311044735,-151.0,0.0004,120]
[331383970,1720311044744,-250.0,0.0004,120]
[331383971,1720311044753,-175.0,0.00040047,15]
[331383972,1720311044762,-152.0,0.00040047,15]
[331383973,1720311044772,-314.9347333,0.00040137,2]
[331383974,1720311044781,-175.0,0.00040241,15]
[331383975,1720311044793,-152.0,0.00040241,15]
[331383976,1720311044803,-175.0,0.00040434,15]
[331383977,1720311044812,-152.0,0.00040434,15]
[331383978,1720311044821,-4240.95,0.00040546,120]
[331383979,1720311044831,-9774.21117732,0.00040599,20]
[331383980,1720311044841,-175.0,0.00040628,15]
[331383981,1720311044851,-152.0,0.00040628,15]
[331383982,1720311044860,-153.0,0.00040628,2]
[331383983,1720311044870,-153.0,0.00040628,2]
[331383984,1720311044879,-153.0,0.00040628,2]
[331383985,1720311044889,-153.0,0.00040628,2]
[331383986,1720311044899,-153.0,0.00040628,2]
[331383987,1720311044908,-153.0,0.00040628,2]
[331383988,1720311044918,-153.0,0.00040628,2]
[331383989,1720311044927,-153.0,0.00040628,2]
[331383990,1720311044936,-153.0,0.00040628,2]
[331383991,1720311044946,-193.803263,0.00040808,2]
[331383992,1720311044955,-175.0,0.00040821,15]
[331383993,1720311044967,-152.0,0.00040821,15]
[331383994,1720311044977,-150.0,0.00040898,2]
[331383995,1720311044987,-2279.64038835,0.00041,2]
[331383996,1720311044996,-175.0,0.00041015,15]
[331383997,1720311045007,-152.0,0.00041015,15]
[331383998,1720311045016,-1000.0,0.00041095,10]
[331383999,1720311045026,-179.0880074,0.00041096,2]
[331384000,1720311045036,-175.0,0.00041208,31]
[331384001,1720311045046,-152.0,0.00041208,31]
[331384002,1720311045055,-151.0,0.00041616,120]
[331384003,1720311045066,-683.0,0.00041904,30]
[331384004,1720311045076,-500.0,0.00042,120]
[331384005,1720311045085,-300.0,0.00042,120]
[331384006,1720311045095,-160.0,0.00042015,3]
[331384007,1720311045104,-2749.72049419,0.0004218,60]
[331384008,1720311045115,-1000.0,0.00042465,10]
[331384009,1720311045125,-8484.11,0.00042465,120]
[331384010,1720311045134,-200.0,0.00042466,2]
[331384011,1720311045144,-2500.0,0.000425,120]
[331384012,1720311045154,-150.0,0.00042678,2]
[331384013,1720311045164,-877.0,0.00042683,2]
[331384014,1720311045173,-878.0,0.00042683,2]
[331384015,1720311045182,-206030.41994055,0.000429,15]
[331384016,1720311045192,-215.242558,0.000429,14]
[331384017,1720311045201,-359.196396,0.000429,14]
[331384018,1720311045211,-359.196396,0.000429,14]
[331384019,1720311045220,-151.0,0.000429,14]
[331384020,1720311045230,-349.445685,0.000429,14]
[331384021,1720311045239,-349.445685,0.000429,14]
[331384022,1720311045248,-450.650008,0.000429,14]
[331384023,1720311045376,-450.650008,0.000429,14]
[331384024,1720311045386,-408.482586,0.000429,14]
[331384025,1720311045396,-408.482586,0.000429,14]
[331384026,1720311045405,-151.0,0.000429,14]
[331384027,1720311045415,-151.0,0.000429,14]
[331384028,1720311045425,-279.355192,0.000429,14]
[331384029,1720311045435,-151.0,0.000429,14]
[331384030,1720311045444,-218.510069,0.000429,14]
[331384031,1720311045454,-218.510069,0.000429,14]
[331384032,1720311045464,-300.096,0.000429,14]
[331384033,1720311045473,-151.0,0.000429,14]
[331384034,1720311045483,-151.0,0.000429,14]
[331384035,1720311045493,-151.0,0.000429,14]
[331384036,1720311045503,-1000.0,0.00043,43]
[331384037,1720311045513,-1439.70803458,0.00043,120]
[331384038,1720311045523,-2007.0,0.00043,120]
[331384039,1720311045533,-2000.0,0.00043,120]
[331384040,1720311045545,-2000.0,0.00043,120]
[331384041,1720311045557,-1000.0,0.00043,120]
[331384042,1720311045567,-593.5639043,0.00043,120]
[331384043,1720311045578,-206.1814845,0.00043014,2]
[331384044,1720311045588,-155.977316,0.00043025,30]
[331384045,1720311045598,-1734.0,0.000431,19]
[331384046,1720311045609,-1734.0,0.000431,19]
[331384047,1720311045622,-1428.0,0.000431,19]
[331384048,1720311045632,-8484.11,0.0004315,120]
[331384049,1720311045642,-151.0,0.00043233,120]
[331384050,1720311045651,-1000.0,0.00043287,90]
[331384051,1720311045661,-500.0,0.00043287,91]
[331384052,1720311045671,-412.362969,0.00043288,2]
[331384053,1720311045681,-412.362969,0.00043288,2]
[331384054,1720311045691,-412.362969,0.00043425,2]
[331384055,1720311045701,-200.0,0.00043585,120]
[331384056,1720311045711,-138351.96833665,0.0004369,2]
[331384057,1720311045721,-215.242558,0.0004369,14]
[331384058,1720311045731,-359.196396,0.0004369,14]
[331384059,1720311045741,-359.196396,0.0004369,14]
[331384060,1720311045751,-151.0,0.0004369,14]
[331384061,1720311045761,-349.445685,0.0004369,14]
[331384062,1720311045770,-349.445679,0.0004369,14]
[331384063,1720311045780,-450.650008,0.0004369,14]
[331384064,1720311045791,-450.650018,0.0004369,14]
[331384065,1720311045801,-408.482586,0.0004369,14]
[331384066,1720311045811,-408.482586,0.0004369,14]
[331384067,1720311045820,-151.0,0.0004369,14]
[331384068,1720311045829,-151.0,0.0004369,14]
[331384069,1720311045839,-151.0,0.0004369,14]
[331384070,1720311045849,-218.510069,0.0004369,14]
[331384071,1720311045858,-218.510069,0.0004369,14]
[331384072,1720311045868,-196.824,0.0004369,14]
[331384073,1720311045877,-263.367396,0.0004369,14]
[331384074,1720311045886,-151.0,0.0004369,14]
[331384075,1720311045896,-160.0,0.00043799,30]
[331384076,1720311045905,-306.620279,0.000438,23]
[331384077,1720311045915,-160.0,0.00043834,30]
[331384078,1720311045925,-284.30371793,0.00043835,3]
[331384079,1720311045934,-539.93,0.00043835,120]
[331384080,1720311045944,-500.0,0.00043835,120]
[331384081,1720311045953,-863.71,0.00043835,120]
[331384082,1720311045962,-500.0,0.00043835,120]
[331384083,1720311045972,-500.0,0.00043835,120]
[331384084,1720311045981,-500.0,0.00043835,120]
[331384085,1720311045991,-500.0,0.00043835,120]
[331384086,1720311046000,-500.0,0.00043835,120]
[331384087,1720311046010,-500.0,0.00043835,120]
[331384088,1720311046019,-500.0,0.00043835,120]
[331384089,1720311046029,-500.0,0.00043835,120]
[331384090,1720311046039,-500.0,0.00043835,120]
[331384091,1720311046048,-500.0,0.00043835,120]
[331384092,1720311046057,-500.0,0.00043835,120]
[331384093,1720311046067,-500.0,0.00043835,120]
[331384094,1720311046076,-500.0,0.00043835,120]
[331384095,1720311046086,-500.0,0.00043835,120]
[331384096,1720311046096,-500.0,0.00043835,120]
[331384097,1720311046105,-500.0,0.00043835,120]
[331384098,1720311046116,-500.0,0.00043835,120]
[331384099,1720311046126,-427.55795592,0.00043835,120]
[331384100,1720311046135,-758.3,0.00043835,120]
[331384101,1720311046144,-2277.09,0.00043835,120]
[331384102,1720311046154,-500.0,0.00043835,120]
[331384103,1720311046163,-500.0,0.00043835,120]
[331384104,1720311046172,-500.0,0.00043835,120]
[331384105,1720311046182,-3622.16,0.00043835,120]
[331384106,1720311046191,-500.0,0.00043835,120]
[331384107,1720311046201,-4420.68,0.00043835,120]
[331384108,1720311046210,-8341.12,0.00043835,120]
[331384109,1720311046219,-2729.24,0.00043835,120]
[331384110,1720311046228,-500.0,0.00043835,120]
[331384111,1720311046237,-1418.25,0.00043835,120]
[331384112,1720311046247,-5085.80966944,0.00043835,120]
[331384113,1720311046281,-459.675,0.00026848,2]
[331384114,1720311046295,-228.46404631,0.00026848,2]
[331384115,1720311046304,-150.75878594,0.00041503,2]
[331384116,1720311046313,-301.51757188,0.00042201,4]
[331384117,1720311046323,-13308.95033056,0.00043835,120]
[331384118,1720311046332,-18394.76,0.00043835,120]
[331384119,1720311046342,-18394.76,0.00043835,120]
[331384120,1720311046351,-18394.76,0.00043835,120]
[331384121,1720311046360,-18394.76,0.00043835,120]
[331384122,1720311046371,-18394.76,0.00043835,120]
[331384123,1720311046380,-18394.76,0.00043835,120]
[331384124,1720311046389,-18394.76,0.00043835,120]
[331384125,1720311046399,-18394.76,0.00043835,120]
[331384126,1720311046409,-18394.76,0.00043835,120]
[331384130,1720311046418,-18394.76,0.00043835,120]
[331384134,1720311046428,-18394.76,0.00043835,120]
[331384138,1720311046438,-18394.76,0.00043835,120]
[331384142,1720311046447,-18394.76,0.00043835,120]
[331384145,1720311046456,-18394.76,0.00043835,120]
[331384148,1720311046466,-18394.76,0.00043835,120]
[331384151,1720311046475,-18394.76,0.00043835,120]
[331384153,1720311046484,-18394.76,0.00043835,120]
[331384157,1720311046494,-18394.76,0.00043835,120]
[331384158,1720311046504,-18394.76,0.00043835,120]
[331384161,1720311046514,-7275.1663587,0.00043835,120]
[331384172,1720311046600,-500.0,0.00016243,2]
[331384173,1720311046610,-154.87576558,0.0001818,2]
[331384175,1720311046622,-151.0,0.0002,2]
[331384177,1720311046632,-500.0,0.00027397,2]
[331384178,1720311046641,-293.3880832,0.00037053,2]
[331384179,1720311046651,-156.0228219,0.00038961,2]
[331384180,1720311046661,-8354.58896369,0.00043835,120]
[331384181,1720311046985,-500.0,0.0004376,8]
[331384182,1720311046995,-539.06688618,0.00043835,120]
[331384183,1720311096264,2523.50182415,0.00014999,2]
[331384184,1720311124467,100000.0,0.00014998,2]
[331384185,1720311144929,300.0,0.00013699,2]
[331384186,1720311174988,155.00760192,0.00014999,2]
[331384187,1720311175189,154.76012181,0.00014998,2]
[331384188,1720311190140,272.0890637,0.00014999,2]
[331384189,1720311191752,4710.72024946,0.00014999,2]
[331384190,1720311194157,1597.25650539,0.00014999,2]
[331384191,1720311201892,918.03633124,0.00014999,2]
[331384192,1720311216812,2132.45671248,0.00014999,2]
[331384193,1720311216850,100000.0,0.00014998,2]
[331384194,1720311256200,154.76012181,0.00014999,2]
[331384196,1720311353760,306.13570028,0.00014999,2]
[331384197,1720311355710,183.25657312,0.00014999,2]
[331384198,1720311363864,5399.9502667,0.00014998,2]
[331384199,1720311395335,840.93371106,0.00015,2]
[331384208,1720311525032,-19034.1895,0.00015398,2]
[331384211,1720311552338,154.74467129,0.00014999,2]
[331384212,1720311614673,2897.30548455,0.00014999,2]
[331384213,1720311615613,166.49006997,0.00014999,2]
[331384214,1720311642048,255.06929796,0.00014999,2]
[331384215,1720311648595,1088.12737644,0.00014999,2]
[331384216,1720311649098,158.19021239,0.00014999,2]
[331384217,1720311649460,574.1884159,0.00014999,2]
[331384218,1720311652211,1331.26692214,0.00014999,2]
[331384219,1720311652365,156.21704903,0.00014999,2]
[331384220,1720311656163,425.21056461,0.00014999,2]
[331384221,1720311657504,208.04822449,0.00014999,2]
[331384222,1720311659567,160.0,0.00014999,2]
[331384223,1720311663866,397.62940615,0.00014999,2]
[331384224,1720311665022,155.4929128,0.00014999,2]
[331384225,1720311666087,217.48347106,0.00014999,2]
[331384226,1720311666577,154.80649189,0.00014999,2]
[331384227,1720311671472,1055.47074907,0.00014999,2]
[331384228,1720311675475,171.32771551,0.00014999,2]
[331384229,1720311677161,214.22454271,0.00014999,2]
[331384230,1720311678131,154.74467129,0.00014999,2]
[331384231,1720311683807,154.74467129,0.00014999,2]
[331384232,1720311687385,195.42669427,0.00014999,2]
[331384233,1720311687420,830.21191545,0.00014999,2]
[331384234,1720311687462,602.5770226,0.00014999,2]
[331384235,1720311690809,195.39444739,0.00014999,2]
[331384236,1720311694652,302.7410191,0.00014999,2]
[331384237,1720311695977,154.74467129,0.00014999,2]
[331384239,1720311752288,277.88946451,0.00014999,2]
[331384241,1720311797515,208.00349547,0.00014999,2]
[331384242,1720311801398,160.0,0.00014999,2]
[331384243,1720311806660,178.52045226,0.00014999,2]
[331384244,1720311807107,158.19021239,0.00014999,2]
[331384245,1720311837698,154.74467129,0.00014999,2]
[331384246,1720311841923,195.42669427,0.00014999,2]
[331384253,1720311935660,154.74467129,0.00014999,2]
[331384257,1720311978618,158.19021239,0.00014999,2]
[331384258,1720312000242,154.74467129,0.00014999,2]
[331384260,1720312030215,154.74467129,0.00014999,2]
[331384265,1720312066163,154.74467129,0.00014999,2]
[331384268,1720312135715,158.19021239,0.00014999,2]
[331384270,1720312185231,224.23352759,0.00014999,2]
[331384271,1720312210192,154.74467129,0.00014999,2]
[331384330,1720312232457,-258.70000001,0.00015164,2]
[331384332,1720312232471,-2741.29999999,0.00015164,2]
[331384334,1720312232480,-250.0,0.00015229,2]
[331384336,1720312232490,-150.0,0.00015398,2]
[331384339,1720312232500,-5865.8105,0.00015398,2]
[331384342,1720312232510,-253.0,0.00015994,2]
[331384345,1720312232519,-491.05706512,0.00015995,2]
[331384347,1720312232529,-189.53594451,0.00016155,2]
[331384466,1720312238496,-3418.07300694,0.00016155,2]
[331384467,1720312238506,-365.41949915,0.00016253,2]
[331384469,1720312238516,-57222.12785795,0.00016254,2]
[331384471,1720312238525,-265.49310418,0.00016255,2]
[331384473,1720312238536,-166.666666,0.00016438,2]
[331384475,1720312238546,-276.46537961,0.00016806,2]
[331384477,1720312238555,-166.666666,0.00016823,2]
[331384479,1720312238566,-166.666666,0.00017208,2]
[331384480,1720312238575,-166.666666,0.00017592,2]
[331384482,1720312238585,-166.666666,0.00017977,2]
[331384484,1720312238594,-1040.48365354,0.00018,2]
[331384485,1720312238604,-190.98130658,0.0001818,2]
[331384486,1720312238614,-155.16757676,0.0001818,2]
[331384487,1720312238623,-195.24890524,0.0001818,2]
[331384488,1720312238633,-195.24890524,0.0001818,2]
[331384489,1720312238642,-278.08596879,0.0001818,2]
[331384490,1720312238652,-166.666666,0.00018362,2]
[331384491,1720312238661,-564.93,0.00018889,3]
[331384492,1720312238671,-42231.73992324,0.00018899,2]
[331384493,1720312238682,-5129.84619719,0.000189,2]
[331384494,1720312238691,-847.55897686,0.00019,3]
[331384495,1720312238701,-197.16559461,0.00019,2]
[331384496,1720312238711,-250.0,0.00019041,2]
[331384497,1720312238720,-193.803269,0.00019178,2]
[331384498,1720312238730,-440.6815097,0.00019178,4]
[331384499,1720312238740,-164.732773,0.00019178,2]
[331384500,1720312238749,-10276.35107581,0.0002,2]
[331384501,1720312238759,-155.22117281,0.0002,2]
[331384502,1720312238768,-293.21931504,0.0002,2]
[331384503,1720312238778,-1117.11621423,0.0002,2]
[331384504,1720312238787,-225.57506949,0.0002,2]
[331384505,1720312238797,-3969.2639633,0.0002,2]
[331384506,1720312238807,-154.95222416,0.0002,2]
[331384507,1720312238817,-154.76012181,0.0002,2]
[331384508,1720312238827,-3607.60895144,0.00020486,2]
[331384509,1720312238837,-178.878379,0.00021096,2]
[331384510,1720312238847,-712.5,0.00021096,2]
[331384511,1720312238856,-250.35069097,0.00022,2]
[331384512,1720312238866,-228.46404631,0.00022,2]
[331384513,1720312238876,-879.44990711,0.0002217,2]
[331384514,1720312238885,-5129.84619719,0.000239,2]
[331384515,1720312238895,-97526.0487725,0.00024493,3]
[331384516,1720312238905,-889.23677281,0.00024503,2]
[331384517,1720312238915,-380.0,0.00024658,2]
[331384518,1720312238925,-3607.60895144,0.00024818,2]
[331384519,1720312238935,-154.77557542,0.00025,2]
[331384520,1720312238945,-305.5614955,0.00025,2]
[331384521,1720312238955,-154.83742071,0.00025,2]
[331384522,1720312238964,-250.11014141,0.00025,2]
[331384523,1720312238974,-154.74467129,0.00025204,2]
[331384524,1720312238984,-52108.7037465,0.00025501,2]
[331384525,1720312238994,-195052.097545,0.00025859,3]
[331384526,1720312239003,-164.732773,0.00026388,2]
[331384527,1720312239013,-30000.0,0.00027184,2]
[331384528,1720312239022,-178.878379,0.00027195,2]
[331384529,1720312239036,-712.5,0.00027195,2]
[331384530,1720312239046,-613.8542196,0.00027397,2]
[331384531,1720312239056,-500.0,0.00027397,2]
[331384532,1720312239067,-500.0,0.00027397,2]
[331384533,1720312239081,-500.0,0.00027397,2]
[331384534,1720312239092,-500.0,0.00027397,2]
[331384535,1720312239102,-522.21917874,0.00027397,2]
[331384536,1720312239112,-500.0,0.00027397,2]
[331384537,1720312239123,-500.0,0.00027397,2]
[331384538,1720312239134,-500.0,0.00027397,2]
[331384539,1720312239145,-500.0,0.00027397,2]
[331384540,1720312239156,-173.580737,0.00027397,120]
[331384541,1720312239167,-199.18691618,0.00028,2]
[331384542,1720312239178,-5129.84619719,0.000289,2]
[331384543,1720312239189,-3607.60895144,0.00029149,2]
[331384544,1720312239200,-170.35079036,0.0003,4]
[331384545,1720312239210,-155.23189542,0.0003,4]
[331384546,1720312239220,-642.9488218,0.0003,4]
[331384547,1720312239230,-2014.92242757,0.0003,120]
[331384548,1720312239240,-210.0,0.0003,2]
[331384549,1720312239250,-8793.0526,0.00030267,30]
[331384550,1720312239261,-151.0,0.00031786,6]
[331384551,1720312239271,-1032.23,0.00032876,10]
[331384552,1720312239282,-210.0,0.00033,2]
[331384553,1720312239293,-210.0,0.00033,2]
[331384554,1720312239303,-178.878379,0.00033295,2]
[331384555,1720312239314,-712.5,0.00033295,2]
[331384556,1720312239324,-3607.60895144,0.00033481,2]
[331384557,1720312239334,-151.0,0.00033547,7]
[331384558,1720312239344,-164.732773,0.00033598,2]
[331384559,1720312239354,-983.49111418,0.00033907,2]
[331384560,1720312239364,-1032.23,0.00034246,10]
[331384561,1720312239375,-200.0,0.00034716,120]
[331384562,1720312239386,-474.22653977,0.00035,4]
[331384563,1720312239396,-151.0,0.00035307,15]
[331384564,1720312239406,-151.0,0.00035307,15]
[331384565,1720312239417,-5185.9546524,0.00035353,2]
[331384566,1720312239427,-97526.0487725,0.00035606,4]
[331384567,1720312239436,-1032.23,0.00035616,10]
[331384568,1720312239446,-1718.52,0.00035616,3]
[331384569,1720312239457,-5185.9546524,0.00035635,2]
[331384570,1720312239467,-5185.9546524,0.00035945,2]
[331384571,1720312239477,-531.56332391,0.00036,30]
[331384572,1720312239486,-210.0,0.00036,2]
[331384573,1720312239690,-210.0,0.00036,2]
[331384574,1720312239700,-210.0,0.00036,2]
[331384575,1720312239710,-1000.0,0.00036073,3]
[331384576,1720312239719,-150.0,0.00036156,2]
[331384577,1720312239730,-5185.9546524,0.00036166,2]
[331384578,1720312239739,-5185.9546524,0.00036603,2]
[331384579,1720312239749,-300.0,0.00036727,2]
[331384580,1720312239759,-300.0,0.00036727,2]
[331384581,1720312239768,-447.14386713,0.00036727,2]
[331384582,1720312239778,-5185.9546524,0.00036935,2]
[331384583,1720312239788,-1032.23,0.00036986,10]
[331384584,1720312239798,-155.11332947,0.00037,4]
[331384585,1720312239808,-151.0,0.00037067,15]
[331384586,1720312239818,-151.0,0.00037067,15]
[331384587,1720312239827,-5185.9546524,0.00037131,2]